fUST/lending_fUST_20241126
["ID","MTS","AMOUNT","RATE_DAILY","PERIOD"]
[343404680,1732618244826,-500.0,0.00026296,2]
[343404682,1732618244836,-500.0,0.00026296,2]
[343404684,1732618244846,-500.0,0.00026296,2]
[343404686,1732618244855,-500.0,0.00026296,2]
[343404688,1732618244864,-389.3150233,0.00026296,2]
[343404690,1732618244874,-500.0,0.00026296,2]
[343404692,1732618244883,-500.0,0.00026296,2]
[343404694,1732618244894,-500.0,0.00026296,2]
[343404696,1732618244903,-500.0,0.00026296,2]
[343404698,1732618244913,-500.0,0.00026296,2]
[343404700,1732618244924,-500.0,0.00026296,2]
[343404701,1732618244934,-500.0,0.00026296,2]
[343404703,1732618244944,-500.0,0.00026296,2]
[343404706,1732618244955,-500.0,0.00026296,2]
[343404708,1732618244964,-500.0,0.00026296,2]
[343404709,1732618244974,-500.0,0.00026296,2]
[343404711,1732618244989,-500.0,0.00026296,2]
[343404713,1732618244999,-500.0,0.00026296,2]
[343404715,1732618245009,-500.0,0.00026296,2]
[343404717,1732618245018,-500.0,0.00026296,2]
[343404719,1732618245028,-5000.0,0.00026298,7]
[343404721,1732618245038,-607.23511423,0.000264,2]
[343404723,1732618245048,-200.54746631,0.000264,2]
[343404725,1732618245059,-500.0,0.000264,2]
[343404728,1732618245070,-338.14,0.00026488,3]
[343404729,1732618245077,-676.28,0.00026508,3]
[343404731,1732618245086,-1352.56,0.00026518,3]
[343404733,1732618245095,-501.15803519,0.00026662,2]
[343404735,1732618245105,-1000.0,0.00026662,2]
[343404737,1732618245115,-235.32331555,0.000269,2]
[343404739,1732618245125,-860.47730831,0.000269,2]
[343404741,1732618245134,-587.0,0.00026969,2]
[343404743,1732618245144,-506.18118143,0.00026973,2]
[343404745,1732618245154,-333.59636872,0.00026973,2]
[343404747,1732618245163,-500.0,0.00026973,2]
[343404749,1732618245173,-501.20095146,0.00026973,2]
[343404751,1732618245182,-158.56464448,0.00026973,2]
[343404753,1732618245193,-500.71588841,0.00026973,2]
[343404755,1732618245203,-206.44357046,0.00026999,2]
[343404757,1732618245212,-500.0,0.00026999,2]
[343404759,1732618245222,-197.96199264,0.00026999,2]
[343404761,1732618245237,-387.02741671,0.00026999,2]
[343404771,1732618245331,-223.24095601,0.00026999,2]
[343404773,1732618245341,-164536.20724335,0.00027,5]
[343405001,1732618651380,163.181104,0.00013973,2]
[343405003,1732618694288,186.7723358,0.00021737,2]
[343405007,1732619228103,-937.33869019,0.00022425,2]
[343405008,1732619228125,-200.54070071,0.00022552,4]
[343405009,1732619228150,-235.7522136,0.00022652,2]
[343405010,1732619228175,-1691.02646,0.00022881,2]
[343405011,1732619228197,-1256.27830797,0.00023566,2]
[343405012,1732619235124,-434.74815203,0.00023566,2]
[343405013,1732619235147,-195.42601426,0.00024104,2]
[343405014,1732619235168,-195.08598739,0.00024204,2]
[343405015,1732619235191,-948.00985408,0.00024251,2]
[343405016,1732619366089,-1616.2944,0.00022552,2]
[343405017,1732619388786,162.94261,0.00013973,2]
[343405059,1732619432978,-427.38575376,0.00022552,2]
[343405061,1732619432989,-204.1584709,0.00023578,2]
[343405063,1732619432999,-6448.3815979,0.00023636,2]
[343405066,1732619433009,-195.42601425,0.00024151,2]
[343405068,1732619433019,-743.01660592,0.00024251,2]
[343405070,1732619433029,-195.42601425,0.00024434,2]
[343405072,1732619433039,-116.40706922,0.00024532,2]
[343405074,1732619433052,-183.59293078,0.00024532,2]
[343405076,1732619433063,-7072.28752431,0.00024532,2]
[343405078,1732619433076,-13961.71247569,0.00024532,2]
[343405080,1732619433086,-5225.00606845,0.00024534,2]
[343405082,1732619433096,-164.556448,0.00024549,2]
[343405084,1732619433106,-2667.83115697,0.00024634,2]
[343405086,1732619433116,-1847.81099704,0.00024637,2]
[343405088,1732619433127,-24900.0,0.00024637,2]
[343405091,1732619433137,-418.557944,0.00024669,2]
[343405093,1732619433147,-160.0653048,0.00024673,2]
[343405095,1732619433157,-1578.5862428,0.0002468,2]
[343405097,1732619433167,-158.56464448,0.000247,2]
[343405098,1732619433177,-500.94417117,0.000247,2]
[343405099,1732619433192,-500.53050833,0.000247,2]
[343405100,1732619433205,-500.0,0.000247,2]
[343405102,1732619433215,-500.94072214,0.000247,2]
[343405103,1732619433225,-302.84859387,0.00025,2]
[343405105,1732619433234,-302.8183302,0.00025,2]
[343405107,1732619433244,-1000.0,0.00025248,2]
[343405109,1732619433254,-302.84859387,0.0002525,2]
[343405111,1732619433263,-302.8183302,0.0002525,2]
[343405113,1732619433273,-5225.00606838,0.00025258,2]
[343405114,1732619433283,-302.84859387,0.000255,2]
[343405115,1732619433293,-302.8183302,0.000255,2]
[343405117,1732619433302,-1000.0,0.00025617,2]
[343405119,1732619433316,-9559.58805453,0.0002567,2]
[343405121,1732619433326,-303.61539882,0.0002575,2]
[343405122,1732619433337,-302.8183302,0.0002575,2]
[343405123,1732619433348,-177.08,0.0002581,2]
[343405124,1732619433358,-210.52129162,0.0002581,2]
[343405125,1732619433367,-267.123,0.000259,11]
[343405126,1732619433377,-9559.58805453,0.00025942,2]
[343405127,1732619433386,-1864.59,0.00025971,10]
[343405128,1732619433395,-5225.00606838,0.00025981,2]
[343405129,1732619433404,-2386.64608593,0.00026,7]
[343405130,1732619433416,-2730.20823334,0.00026,7]
[343405131,1732619433432,-7056.81584325,0.00026,7]
[343405132,1732619433447,-207.6760703,0.00026,7]
[343405133,1732619433457,-302.8183302,0.00026,2]
[343405134,1732619433467,-681.47,0.00026027,3]
[343405135,1732619433476,-2237.51,0.00026027,10]
[343405136,1732619433540,-908.58,0.00026037,3]
[343405137,1732619433552,-454.29,0.00026037,3]
[343405138,1732619433562,-227.14,0.00026037,3]
[343405139,1732619433572,-320.1155995,0.00026061,2]
[343405140,1732619433584,-770.4027913,0.00026061,2]
[343405141,1732619436455,-250.0,0.00023441,2]
[343405142,1732619436465,-8469.06966373,0.00026061,2]
[343405143,1732619436474,-24221.83761239,0.00026186,2]
[343405144,1732619436483,-340.56470472,0.00026195,2]
[343405145,1732619436492,-1005.85982945,0.0002625,2]
[343405146,1732619436501,-454.2274953,0.0002625,4]
[343405147,1732619436511,-5000.0,0.00026298,7]
[343405148,1732619436520,-9559.58805453,0.00026462,2]
[343405149,1732619436530,-310.22279581,0.0002648,2]
[343405150,1732619436539,-454.2274953,0.000265,4]
[343405151,1732619436548,-553.47950374,0.00026637,2]
[343405152,1732619436558,-500.0,0.00026637,2]
[343405153,1732619436567,-500.0,0.00026637,2]
[343405154,1732619436576,-500.0,0.00026637,2]
[343405156,1732619436586,-500.0,0.00026637,2]
[343405158,1732619436595,-333.59636872,0.00026673,2]
[343405159,1732619436604,-500.0,0.00026673,2]
[343405160,1732619436613,-644.87415073,0.00026673,2]
[343405161,1732619436622,-160.06480807,0.00026673,2]
[343405162,1732619436631,-500.0,0.00026673,2]
[343405163,1732619436639,-501.20095146,0.00026673,2]
[343405164,1732619436649,-150.0,0.000267,120]
[343405165,1732619436658,-5225.00606838,0.00026705,2]
[343405166,1732619436667,-454.2274953,0.0002675,4]
[343405167,1732619436677,-1231.336,0.00026753,2]
[343405168,1732619436686,-9559.58805455,0.00026772,2]
[343405169,1732619436703,-323.74798282,0.00026873,2]
[343405170,1732619436713,-162.33327647,0.00026873,2]
[343405171,1732619436722,-500.0,0.00026873,2]
[343405172,1732619436731,-500.0,0.00026873,2]
[343405173,1732619436740,-553.10676509,0.00026873,2]
[343405174,1732619436750,-327.51149908,0.00026899,2]
[343405175,1732619436759,-500.0,0.00026899,2]
[343405176,1732619436769,-298.50551922,0.00026899,2]
[343405177,1732619436778,-578.31760497,0.00026899,2]
[343405178,1732619436787,-329.62469455,0.00026899,2]
[343405179,1732619436797,-266.10822501,0.00026899,2]
[343405180,1732619436807,-222000.0,0.000269,2]
[343405181,1732619436816,-151.0,0.000269,13]
[343405182,1732619436826,-151.0,0.000269,11]
[343405183,1732619436836,-151.0,0.000269,18]
[343405184,1732619436845,-153.4012,0.000269,12]
[343405185,1732619436855,-1134.72568807,0.000269,2]
[343405186,1732619436866,-1224.26141228,0.000269,2]
[343405187,1732619436876,-152.57323788,0.000269,7]
[343405188,1732619436885,-152.57323788,0.000269,7]
[343405189,1732619436894,-152.57323788,0.000269,7]
[343405190,1732619436906,-152.57323788,0.000269,7]
[343405191,1732619436915,-152.57323788,0.000269,7]
[343405192,1732619436924,-152.57323788,0.000269,7]
[343405193,1732619436933,-152.57323788,0.000269,7]
[343405194,1732619436948,-152.57323788,0.000269,7]
[343405195,1732619436957,-152.57,0.000269,7]
[343405196,1732619436966,-158.44143934,0.000269,7]
[343405197,1732619436977,-158.44143934,0.000269,7]
[343405198,1732619436987,-158.44143934,0.000269,7]
[343405199,1732619436997,-158.44143934,0.000269,7]
[343405200,1732619437007,-158.44143934,0.000269,7]
[343405201,1732619437016,-158.44143934,0.000269,7]
[343405202,1732619437026,-158.44143934,0.000269,7]
[343405203,1732619437036,-151.91025474,0.00026946,2]
[343405204,1732619437045,-158.44143934,0.00026968,7]
[343405205,1732619437108,-500.0,0.00026973,2]
[343405206,1732619437119,-500.0,0.00026973,2]
[343405207,1732619437130,-500.0,0.00026973,2]
[343405208,1732619437140,-150.29245924,0.00026973,2]
[343405209,1732619437151,-420.0,0.00026985,2]
[343405210,1732619437161,-474542.44275665,0.00027,5]
[343405211,1732619437172,-127900.23,0.00027,5]
[343405212,1732619437182,-153.07011,0.00027,14]
[343405213,1732619437195,-262407.27,0.00027,5]
[343405214,1732619437204,-151.0,0.00027,14]
[343405215,1732619437214,-151.0,0.00027,18]
[343405216,1732619437223,-454.2274953,0.00027,4]
[343405217,1732619437233,-150.0,0.00027087,2]
[343405218,1732619437242,-150.0,0.00027087,2]
[343405219,1732619437252,-150.0,0.00027087,2]
[343405220,1732619437261,-613.512,0.00027087,2]
[343405221,1732619437271,-2504.869,0.00027087,2]
[343405222,1732619437280,-1111.0,0.00027087,2]
[343405223,1732619437289,-151.0,0.000271,20]
[343405224,1732619437298,-1224.26141221,0.000272,2]
[343405225,1732619437308,-151.0,0.000272,10]
[343405226,1732619437317,-151.0,0.000272,20]
[343405227,1732619437327,-1000.0,0.00027221,2]
[343405228,1732619437336,-1000.0,0.00027221,2]
[343405229,1732619437346,-454.2274953,0.0002725,4]
[343405230,1732619437357,-151.0,0.000273,10]
[343405231,1732619437367,-500.0,0.00027397,2]
[343405232,1732619437376,-151.0,0.000274,19]
[343405233,1732619437386,-1817.16,0.00027407,3]
[343405234,1732619437395,-908.58,0.00027407,3]
[343405235,1732619437404,-454.28,0.00027407,3]
[343405236,1732619437413,-158.44143934,0.00027417,7]
[343405237,1732619437423,-1000.0,0.00027421,5]
[343405238,1732619437432,-845.71196193,0.00027421,5]
[343405239,1732619437444,-5225.00606838,0.00027428,2]
[343405240,1732619437453,-1134.72568805,0.00027479,2]
[343405241,1732619437463,-1224.26141221,0.000275,2]
[343405242,1732619437472,-3000.0,0.000275,2]
[343405243,1732619437482,-151.0,0.000275,17]
[343405244,1732619437492,-151.0,0.000275,17]
[343405245,1732619437502,-3000.0,0.0002751,2]
[343405246,1732619437512,-3000.0,0.0002752,2]
[343405247,1732619437522,-601.32082907,0.00027521,5]
[343405248,1732619437533,-1000.0,0.00027521,5]
[343405249,1732619437543,-1000.0,0.00027521,5]
[343405250,1732619437553,-3000.0,0.0002753,2]
[343405251,1732619437562,-3000.0,0.0002754,2]
[343405252,1732619437572,-3000.0,0.0002755,2]
[343405253,1732619437581,-313.65765376,0.00027559,2]
[343405254,1732619437591,-3000.0,0.0002756,2]
[343405255,1732619437600,-3000.0,0.0002757,2]
[343405256,1732619437610,-310.43244482,0.00027571,2]
[343405257,1732619437620,-3000.0,0.0002758,2]
[343405258,1732619437630,-3000.0,0.0002759,2]
[343405259,1732619437639,-3000.0,0.000276,2]
[343405260,1732619437649,-3935.775551,0.0002761,2]
[343405261,1732619437659,-153.0,0.00027644,30]
[343405262,1732619437669,-153.0,0.00027644,30]
[343405263,1732619437679,-153.0,0.00027644,30]
[343405264,1732619437693,-153.0,0.00027644,30]
[343405265,1732619437702,-153.0,0.00027644,30]
[343405266,1732619437712,-153.0,0.00027644,30]
[343405267,1732619437722,-153.0,0.00027644,30]
[343405268,1732619437732,-153.0,0.00027644,30]
[343405269,1732619437742,-153.0,0.00027644,30]
[343405270,1732619437752,-153.0,0.00027644,30]
[343405271,1732619437761,-153.0,0.00027644,30]
[343405272,1732619437771,-153.0,0.00027644,30]
[343405273,1732619437780,-153.0,0.00027644,30]
[343405274,1732619437791,-153.0,0.00027644,30]
[343405275,1732619437800,-153.0,0.00027644,30]
[343405276,1732619437810,-336.4785496,0.00027644,30]
[343405277,1732619437820,-1224.26141221,0.000278,2]
[343405278,1732619437830,-310.01113979,0.00027804,2]
[343405279,1732619437840,-158.44143934,0.00027867,7]
[343405280,1732619437849,-212.7894965,0.00027918,30]
[343405281,1732619437859,-409.4549889,0.00027918,30]
[343405282,1732619437869,-212.7894965,0.00027918,30]
[343405283,1732619437879,-306.6432877,0.00027918,30]
[343405284,1732619437889,-153.0,0.00027918,30]
[343405285,1732619437900,-212.7894965,0.00027918,30]
[343405286,1732619437913,-155.2619796,0.00027918,30]
[343405287,1732619437923,-304.8206204,0.00027918,30]
[343405288,1732619437933,-212.7894965,0.00027918,30]
[343405289,1732619437995,-212.7894965,0.00027918,30]
[343405290,1732619438005,-202.996412,0.00027918,30]
[343405291,1732619438015,-304.8206204,0.00027918,30]
[343405292,1732619438024,-1134.72568805,0.00028058,2]
[343405293,1732619438034,-1224.26141221,0.000281,2]
[343405294,1732619438043,-5225.00606838,0.00028152,2]
[343405295,1732619438053,-151.0,0.00028186,7]
[343405296,1732619438062,-1500.0,0.00028222,5]
[343405297,1732619438072,-1500.0,0.00028222,5]
[343405298,1732619438082,-158.44143934,0.00028316,7]
[343405299,1732619438091,-1224.26141221,0.00028399,2]
[343405300,1732619438101,-1505.09796599,0.00028422,5]
[343405301,1732619438110,-306.63,0.000285,31]
[343405302,1732619438120,-306.63,0.000285,31]
[343405303,1732619438130,-306.63,0.000285,31]
[343405304,1732619438140,-306.63,0.000285,31]
[343405305,1732619438149,-306.63,0.000285,31]
[343405306,1732619438158,-306.63,0.000285,31]
[343405307,1732619438167,-306.63,0.000285,31]
[343405308,1732619438177,-306.63,0.000285,31]
[343405309,1732619438186,-306.63,0.000285,31]
[343405310,1732619438198,-306.63,0.000285,31]
[343405311,1732619438207,-306.63,0.000285,31]
[343405312,1732619438216,-306.63,0.000285,31]
[343405313,1732619438226,-649.93497964,0.00028522,5]
[343405314,1732619438236,-155.34779785,0.00028522,5]
[343405315,1732619438245,-1134.72568805,0.00028636,2]
[343405316,1732619438255,-153.0,0.00028658,30]
[343405317,1732619438265,-1224.26141221,0.00028699,2]
[343405318,1732619438274,-158.44143934,0.00028766,7]
[343405319,1732619438284,-500.0,0.00028767,4]
[343405320,1732619438294,-193.0821909,0.00028795,30]
[343405321,1732619438303,-212.7894965,0.00028795,30]
[343405323,1732619438313,-154.4165448,0.00028795,30]
[343405325,1732619438322,-5000.0,0.00028798,7]
[343405327,1732619438331,-5225.00606838,0.00028875,2]
[343405329,1732619438341,-1745.192953,0.000289,2]
[343405332,1732619438351,-151.0,0.00028943,7]
[343405335,1732619438361,-1224.26141221,0.00028999,2]
[343405339,1732619438382,-153.0,0.00029,120]
[343405341,1732619438398,-15955.35303266,0.00029,21]
[343405343,1732619438416,-1134.72568805,0.00029215,2]
[343405345,1732619438434,-666.0,0.00029215,2]
[343405350,1732619438454,-158.44,0.00029215,7]
[343405353,1732619438472,-1224.26141221,0.00029299,2]
[343405355,1732619438488,-248.386221,0.00029315,7]
[343405356,1732619438501,-248.386221,0.00029315,7]
[343405358,1732619438520,-151.0,0.00029315,7]
[343405361,1732619438540,-153.169495,0.00029315,7]
[343405363,1732619438558,-151.0,0.00029315,7]
[343405364,1732619438571,-236.409537,0.00029315,7]
[343405365,1732619438591,-151.0,0.00029315,7]
[343405367,1732619438605,-151.0,0.00029315,7]
[343405368,1732619438621,-151.0,0.00029315,7]
[343405369,1732619438634,-151.0,0.00029315,7]
[343405370,1732619438649,-151.0,0.00029315,7]
[343405371,1732619438663,-151.0,0.00029315,7]
[343405372,1732619438679,-151.0,0.00029315,7]
[343405374,1732619438695,-151.991081,0.00029315,7]
[343405376,1732619438710,-151.0,0.00029315,7]
[343405379,1732619438724,-270.404052,0.00029315,7]
[343405380,1732619438739,-404.584677,0.00029315,7]
[343405381,1732619438753,-404.584677,0.00029315,7]
[343405382,1732619438768,-404.584677,0.00029315,7]
[343405383,1732619438784,-404.584677,0.00029315,7]
[343405384,1732619438798,-151.0,0.00029315,7]
[343405385,1732619438812,-151.0,0.00029315,7]
[343405386,1732619438828,-166.337466,0.00029315,7]
[343405387,1732619438842,-2052.182151,0.00029315,7]
[343405388,1732619438857,-2052.182151,0.00029315,7]
[343405389,1732619438871,-2052.182151,0.00029315,7]
[343405390,1732619438885,-2052.182151,0.00029315,7]
[343405392,1732619438900,-151.0,0.00029315,7]
[343405393,1732619438918,-151.0,0.00029315,7]
[343405394,1732619438933,-151.0,0.00029315,7]
[343405395,1732619438948,-151.0,0.00029315,7]
[343405396,1732619438958,-184.036408,0.00029315,7]
[343405407,1732619439067,-184.036408,0.00029315,7]
[343405409,1732619439078,-184.036408,0.00029315,7]
[343405411,1732619439089,-184.036408,0.00029315,7]
[343405413,1732619439099,-176.47417244,0.00029315,2]
[343405415,1732619439109,-500.0,0.00029315,2]
[343405417,1732619439119,-500.0,0.00029315,2]
[343405419,1732619439130,-500.0,0.00029315,2]
[343405421,1732619439140,-572.1355673,0.00029315,2]
[343405424,1732619439150,-500.0,0.00029315,2]
[343405426,1732619439161,-501.47791193,0.00029315,2]
[343405428,1732619439170,-502.76381489,0.00029315,2]
[343405430,1732619439181,-516.6007141,0.00029315,2]
[343405432,1732619439191,-196.20007608,0.00029315,2]
[343405434,1732619439202,-527.82483826,0.00029315,2]
[343405436,1732619439212,-500.60811493,0.00029315,2]
[343405437,1732619439222,-303.664228,0.00029315,7]
[343405439,1732619439232,-303.664228,0.00029315,7]
[343405442,1732619439243,-500.0,0.00029315,2]
[343405444,1732619439253,-536.22453223,0.00029315,2]
[343405446,1732619439262,-481.450254,0.00029315,2]
[343405448,1732619439272,-303.664228,0.00029315,7]
[343405450,1732619439282,-303.664228,0.00029315,7]
[343405452,1732619439291,-462.04622238,0.00029315,2]
[343405454,1732619439301,-502.52478463,0.00029315,2]
[343405456,1732619439310,-503.78948085,0.00029315,2]
[343405458,1732619439320,-501.54582731,0.00029315,2]
[343405460,1732619439330,-500.0,0.00029315,2]
[343405462,1732619439339,-505.91387649,0.00029315,2]
[343405464,1732619439350,-500.0,0.00029315,2]
[343405466,1732619439360,-500.0,0.00029315,2]
[343405468,1732619439369,-500.0,0.00029315,2]
[343405470,1732619439379,-500.0,0.00029315,2]
[343405472,1732619439388,-500.0,0.00029315,2]
[343405474,1732619439398,-500.0,0.00029315,2]
[343405476,1732619439407,-500.0,0.00029315,2]
[343405478,1732619439417,-500.0,0.00029315,2]
[343405480,1732619439426,-500.0,0.00029315,2]
[343405482,1732619439435,-500.0,0.00029315,2]
[343405484,1732619439447,-500.0,0.00029315,2]
[343405486,1732619439457,-500.0,0.00029315,2]
[343405488,1732619439466,-500.0,0.00029315,2]
[343405490,1732619439476,-500.0,0.00029315,2]
[343405492,1732619439486,-323.95834392,0.00029315,2]
[343405494,1732619439495,-500.0,0.00029315,2]
[343405496,1732619439505,-500.0,0.00029315,2]
[343405497,1732619439515,-500.0,0.00029315,2]
[343405499,1732619439524,-500.75726577,0.00029315,2]
[343405502,1732619439534,-506.7931912,0.00029315,2]
[343405503,1732619439544,-501.55030697,0.00029315,2]
[343405506,1732619439554,-500.57912716,0.00029315,2]
[343405508,1732619439564,-502.16513788,0.00029315,2]
[343405510,1732619439576,-503.89244058,0.00029315,2]
[343405512,1732619439587,-501.32381343,0.00029315,2]
[343405514,1732619439597,-505.18703123,0.00029315,2]
[343405516,1732619439607,-501.85383369,0.00029315,2]
[343405518,1732619439616,-500.0,0.00029315,2]
[343405520,1732619439626,-500.0,0.00029315,2]
[343405522,1732619439636,-314.942466,0.00029315,7]
[343405524,1732619439646,-314.942466,0.00029315,7]
[343405526,1732619439656,-502.74127846,0.00029315,2]
[343405528,1732619439665,-506.92543893,0.00029315,2]
[343405530,1732619439675,-314.942466,0.00029315,7]
[343405532,1732619439685,-314.942466,0.00029315,7]
[343405534,1732619439698,-500.0,0.00029315,2]
[343405536,1732619439710,-500.0,0.00029315,2]
[343405538,1732619439720,-507.10143602,0.00029315,2]
[343405540,1732619439729,-502.03443563,0.00029315,2]
[343405542,1732619439738,-500.0,0.00029315,2]
[343405544,1732619439748,-500.0,0.00029315,2]
[343405546,1732619439757,-502.90680415,0.00029315,2]
[343405548,1732619439767,-451.177031,0.00029315,7]
[343405550,1732619439777,-451.177031,0.00029315,7]
[343405552,1732619439786,-500.0,0.00029315,2]
[343405554,1732619439795,-500.0,0.00029315,2]
[343405556,1732619439806,-500.0,0.00029315,2]
[343405558,1732619439815,-503.75059527,0.00029315,2]
[343405560,1732619439826,-507.73600873,0.00029315,2]
[343405562,1732619439835,-451.177031,0.00029315,7]
[343405564,1732619439845,-500.0,0.00029315,2]
[343405566,1732619439854,-451.177031,0.00029315,7]
[343405568,1732619439864,-500.0,0.00029315,2]
[343405570,1732619439874,-500.0,0.00029315,2]
[343405572,1732619439884,-500.0,0.00029315,2]
[343405574,1732619439893,-506.39285551,0.00029315,2]
[343405576,1732619439906,-500.0,0.00029315,2]
[343405578,1732619439915,-494.85883007,0.00029315,2]
[343405580,1732619439925,-500.0,0.00029315,2]
[343405582,1732619439935,-500.0,0.00029315,2]
[343405584,1732619439948,-500.0,0.00029315,2]
[343405586,1732619439958,-500.0,0.00029315,2]
[343405588,1732619439967,-502.04597172,0.00029315,2]
[343405590,1732619439976,-500.0,0.00029315,2]
[343405592,1732619439987,-500.0,0.00029315,2]
[343405594,1732619439997,-500.0,0.00029315,2]
[343405596,1732619440007,-500.0,0.00029315,2]
[343405598,1732619440018,-516.30468231,0.00029315,2]
[343405600,1732619440028,-500.0,0.00029315,2]
[343405602,1732619440037,-500.0,0.00029315,2]
[343405604,1732619440047,-509.46288151,0.00029315,2]
[343405606,1732619440057,-500.0,0.00029315,2]
[343405608,1732619440067,-500.0,0.00029315,2]
[343405610,1732619440077,-500.0,0.00029315,2]
[343405612,1732619440086,-502.05277483,0.00029315,2]
[343405614,1732619440096,-500.0,0.00029315,2]
[343405616,1732619440107,-287.76,0.00029315,2]
[343405618,1732619440117,-500.0,0.00029315,2]
[343405620,1732619440127,-500.7643696,0.00029315,2]
[343405622,1732619440137,-500.0,0.00029315,2]
[343405624,1732619440147,-500.0,0.00029315,2]
[343405626,1732619440156,-500.0,0.00029315,2]
[343405628,1732619440166,-500.0,0.00029315,2]
[343405630,1732619440175,-500.0,0.00029315,2]
[343405632,1732619440185,-500.0,0.00029315,2]
[343405634,1732619440198,-500.0,0.00029315,2]
[343405636,1732619440212,-500.0,0.00029315,2]
[343405638,1732619440222,-500.0,0.00029315,2]
[343405641,1732619440232,-500.0,0.00029315,2]
[343405643,1732619440241,-500.0,0.00029315,2]
[343405645,1732619440251,-500.0,0.00029315,2]
[343405647,1732619440260,-500.0,0.00029315,2]
[343405649,1732619440269,-430.99202882,0.00029315,2]
[343405651,1732619440278,-500.0,0.00029315,2]
[343405652,1732619440288,-500.0,0.00029315,2]
[343405653,1732619440298,-214.335249,0.00029315,7]
[343405654,1732619440309,-500.0,0.00029315,2]
[343405655,1732619440319,-214.335249,0.00029315,7]
[343405656,1732619440329,-500.0,0.00029315,2]
[343405658,1732619440338,-500.0,0.00029315,2]
[343405659,1732619440348,-504.70229723,0.00029315,2]
[343405661,1732619440358,-214.335249,0.00029315,7]
[343405663,1732619440368,-214.335249,0.00029315,7]
[343405664,1732619440378,-1141.145451,0.00029315,7]
[343405665,1732619440387,-500.0,0.00029315,2]
[343405668,1732619440456,-1141.145451,0.00029315,7]
[343405670,1732619440465,-501.7055782,0.00029315,2]
[343405672,1732619440475,-1141.145451,0.00029315,7]
[343405674,1732619440484,-1141.145451,0.00029315,7]
[343405676,1732619440494,-500.0,0.00029315,2]
[343405678,1732619440504,-503.10013656,0.00029315,2]
[343405680,1732619440514,-500.0,0.00029315,2]
[343405682,1732619440524,-500.0,0.00029315,2]
[343405684,1732619440533,-500.0,0.00029315,2]
[343405686,1732619440543,-500.0,0.00029315,2]
[343405689,1732619440552,-500.0,0.00029315,2]
[343405690,1732619440562,-500.0,0.00029315,2]
[343405692,1732619440571,-500.0,0.00029315,2]
[343405695,1732619440581,-500.0,0.00029315,2]
[343405697,1732619440591,-500.0,0.00029315,2]
[343405699,1732619440601,-501.0933694,0.00029315,2]
[343405701,1732619440610,-500.0,0.00029315,2]
[343405703,1732619440619,-500.0,0.00029315,2]
[343405705,1732619440629,-500.0,0.00029315,2]
[343405707,1732619440638,-500.0,0.00029315,2]
[343405709,1732619440648,-511.76838886,0.00029315,2]
[343405711,1732619440657,-587.46733962,0.00029315,2]
[343405713,1732619440667,-500.0,0.00029315,2]
[343405715,1732619440677,-203.91478623,0.00029315,2]
[343405717,1732619440686,-500.0,0.00029315,2]
[343405719,1732619440698,-537.30895969,0.00029315,2]
[343405721,1732619440707,-501.94187339,0.00029315,2]
[343405723,1732619440718,-500.0,0.00029315,2]
[343405725,1732619440727,-500.0,0.00029315,2]
[343405727,1732619440737,-508.39413326,0.00029315,2]
[343405729,1732619440747,-509.42619917,0.00029315,2]
[343405731,1732619440756,-500.0,0.00029315,2]
[343405733,1732619440765,-578.83111077,0.00029315,2]
[343405735,1732619440774,-500.0,0.00029315,2]